bitfinex-derivatives/quotes_ETHF0:USTF0_20250730
["timestamp","ask_amount","ask_price","bid_price","bid_amount"]
[1753840971696,3.2218,3791.9,3791.8,0.5882554]
[1753840972402,3.2218,3791.9,3791.8,0.1951554]
[1753840973903,4.39378159,3791.9,3791.8,0.1951554]
[1753840974100,3.1392,3791.0,3790.9,1.6065]
[1753840974303,3.1392,3791.0,3790.9,2.3461]
[1753840974601,2.5632,3791.0,3790.9,2.6071]
[1753840975002,0.3883,3791.0,3790.9,2.6071]
[1753840975197,2.5632,3791.0,3790.9,2.6071]
[1753840975897,2.5632,3791.0,3790.9,1.4434]
[1753840976104,3.1392,3791.0,3790.9,1.4434]
[1753840976401,3.1392,3791.0,3790.9,2.183]
[1753840977799,3.1392,3791.0,3790.9,2.3461]
[1753840978001,3.1392,3791.0,3790.9,1.4434]
[1753840978598,0.9263,3790.3,3790.2,2.55546]
[1753840978802,1.7916,3790.3,3790.2,2.55546]
[1753840979009,2.5632,3790.3,3790.2,2.55546]
[1753840979210,0.8653,3790.3,3790.2,3.13486]
[1753840979403,0.3883,3790.3,3790.2,3.13486]
[1753840980011,2.5632,3790.3,3790.2,2.6071]
[1753840980206,3.1392,3790.3,3790.2,2.6071]
[1753840981401,3.1392,3790.3,3790.2,2.183]
[1753840981604,3.1392,3790.3,3790.2,1.4434]
[1753840981811,3.1392,3790.0,3789.8,0.19525839]
[1753840981997,3.1392,3789.9,3789.8,0.56235839]
[1753840982201,3.1392,3789.9,3789.8,2.22295839]
[1753840982401,3.1392,3789.9,3789.8,2.80235839]
[1753840982612,3.66701,3789.9,3789.8,0.56235839]
[1753840982808,3.66701,3789.9,3789.8,0.19525839]
[1753840983709,3.1392,3789.9,3789.8,0.19525839]
[1753840983905,3.1392,3789.9,3789.8,1.14175839]
[1753840984212,3.1392,3789.9,3789.8,2.54135839]
[1753840985505,0.9493,3789.9,3789.8,2.59057839]
[1753840985698,3.1392,3789.9,3789.8,0.19525839]
[1753840985901,3.1392,3789.9,3789.8,0.56235839]
[1753840986102,3.1392,3789.9,3789.8,1.63865839]
[1753840986312,3.1392,3789.9,3789.8,2.54135839]
[1753840986606,3.1392,3789.9,3789.8,2.37825839]
[1753840987308,3.1392,3789.9,3789.8,2.54135839]
[1753840987508,2.63767,3791.9,3789.8,2.54135839]
[1753840987509,3.09096,3790.3,3790.2,0.864]
[1753840987709,3.66696,3790.3,3790.2,2.3461]
[1753840988500,0.52778,3790.1,3789.9,0.7396]
[1753840988710,1.75841,3789.9,3789.8,0.19525839]
[1753840989216,3.66701,3789.9,3789.8,0.19525839]
[1753840992109,3.66709,3789.3,3789.2,2.20147331]
[1753840992309,3.66709,3789.3,3789.2,0.96497331]
[1753840992708,3.1392,3789.3,3789.2,0.01847331]
[1753840992906,1.2306,3789.2,3789.1,0.864]
[1753840993109,1.2306,3789.2,3789.1,2.183]
[1753840993417,1.2306,3789.2,3789.1,2.3461]
[1753840993617,3.6671,3789.2,3789.1,2.3461]
[1753840993813,3.1392,3789.2,3789.1,2.3461]
[1753840994317,3.6671,3789.2,3789.1,2.3461]
[1753840996214,3.6671,3789.2,3789.1,1.4434]
[1753840996415,3.6671,3789.2,3789.1,0.3671]
[1753840996616,3.6671,3789.2,3789.1,2.6071]
[1753840997215,3.6671,3789.2,3789.1,2.3461]
[1753840997518,3.6671,3789.2,3789.1,0.9465]
[1753840997817,3.6671,3789.2,3789.1,2.183]
[1753840998417,3.6671,3789.2,3789.1,2.3461]
[1753840998713,3.6671,3789.2,3789.1,2.183]
[1753840998915,3.6671,3789.2,3789.1,1.4434]
[1753840999107,1.75854,3788.9,3788.8,1.979]
[1753840999314,3.66714,3788.9,3788.8,2.3461]
[1753840999611,3.66714,3788.9,3788.8,2.183]
[1753840999817,3.66714,3788.9,3788.8,1.4434]
[1753841000017,3.66714,3788.9,3788.8,0.3671]
[1753841000424,3.66717,3788.7,3788.6,0.9465]
[1753841000621,1.9086,3788.7,3788.0,0.5794]
[1753841000923,1.47728,3788.6,3788.5,2.6071]
[1753841001222,3.08678,3788.6,3788.5,2.6071]
[1753841002223,3.61188,3788.6,3788.5,2.6071]
[1753841002922,3.61188,3788.6,3788.5,2.3461]
[1753841003219,1.75693,3788.3,3788.2,2.2532]
[1753841003415,3.61643,3788.3,3788.2,2.2532]
[1753841003610,0.52803,3788.3,3788.2,2.4897]
[1753841003814,0.52799,3788.6,3788.5,1.1042]
[1753841004023,0.52799,3788.6,3788.5,2.4897]
[1753841004424,1.47629,3788.6,3788.5,2.4897]
[1753841006023,0.7672,3788.8,3788.6,0.52798]
[1753841006332,3.61629,3789.3,3789.2,2.4897]
[1753841006628,4.37441815,3789.3,3789.2,2.4897]
[1753841007426,0.52796,3788.8,3788.7,0.8841]
[1753841007624,3.61636,3788.8,3788.7,0.8841]
[1753841008222,2.5633,3788.8,3788.7,2.1054]
[1753841008425,1.7961,3788.9,3788.8,2.4897]
[1753841008729,2.5633,3788.9,3788.8,2.4897]
[1753841009923,3.0884,3788.9,3788.5,0.1478]
[1753841010123,3.0884,3788.6,3788.5,2.4897]
[1753841010329,0.3811,3788.6,3788.5,2.4897]
[1753841010724,0.9483,3788.6,3788.5,2.4897]
[1753841011529,1.7961,3788.6,3788.5,2.4897]
[1753841012030,3.0884,3788.6,3788.5,2.4897]
[1753841014828,0.528,3788.5,3788.0,0.858]
[1753841015029,3.09138,3787.9,3787.8,2.68506148]
[1753841015228,3.09138,3787.9,3787.8,0.69976148]
[1753841015435,3.09138,3787.9,3787.8,2.68506148]
[1753841016239,3.61648,3787.9,3787.8,2.68506148]
[1753841016435,0.5672,3788.2,3787.8,2.68506148]
[1753841016732,0.5672,3788.2,3788.1,0.3566]
[1753841016733,1.47634,3788.2,3788.1,0.3566]
[1753841016933,3.09134,3788.2,3788.1,2.4897]
[1753841018040,0.7672,3788.6,3788.2,1.3855]
[1753841018340,3.61636,3788.8,3788.7,2.4897]
[1753841019928,1.415,3788.8,3788.7,2.4897]
[1753841020138,2.5633,3788.8,3788.7,2.4897]
[1753841020434,2.5633,3788.8,3787.8,1.51560148]
[1753841020435,0.9366,3789.2,3789.1,0.3566]
[1753841020637,3.0884,3789.2,3789.1,2.4897]
[1753841022439,3.84927718,3789.2,3789.1,2.4897]
[1753841022837,3.90368402,3789.2,3789.1,2.4897]
[1753841023443,4.42878402,3789.2,3789.1,0.8841]
[1753841023645,4.42878402,3789.2,3788.8,2.2532]
[1753841023646,1.2289,3788.9,3788.8,2.2532]
[1753841023940,4.42895102,3788.9,3788.8,2.2532]
[1753841024141,4.42895102,3788.9,3788.8,2.4897]
[1753841024939,3.90385102,3788.9,3788.8,2.4897]
[1753841026141,2.1939,3788.6,3788.4,0.5275]
[1753841026348,3.66790684,3788.5,3788.4,1.3952]
[1753841026643,3.66790684,3788.5,3788.4,2.1054]
[1753841026847,3.66790684,3788.5,3788.0,5.274]
[1753841026848,1.75694,3788.2,3788.1,1.3952]
[1753841027147,4.19594684,3788.2,3788.1,1.3952]
[1753841027338,4.19594684,3788.2,3788.1,0.3566]
[1753841027537,3.61648,3787.9,3787.8,2.44856148]
[1753841027743,4.19598684,3787.9,3787.8,0.55196148]
[1753841027941,4.19598684,3787.9,3787.8,0.19536148]
[1753841028143,4.19598684,3787.9,3787.8,1.07946148]
[1753841028340,4.19598684,3787.9,3787.8,1.59056148]
[1753841028549,3.66790684,3787.9,3787.8,2.44856148]
[1753841028746,3.14280684,3787.9,3787.8,2.68506148]
[1753841028946,1.10460684,3787.9,3787.2,0.1478]
[1753841029249,3.66790684,3787.3,3787.2,2.1054]
[1753841029848,0.4784,3787.0,3786.9,0.5044]
[1753841030045,3.14280684,3787.0,3786.9,2.4897]
[1753841030755,21.398,3788.0,3787.0,0.5275]
[1753841031055,3.67098684,3787.3,3787.2,2.4897]
[1753841031250,0.87684,3787.5,3787.4,1.016]
[1753841031456,3.58984684,3787.5,3787.4,0.8686]
[1753841031658,3.58984684,3787.5,3787.4,1.3929]
[1753841032058,4.12584684,3787.5,3787.4,2.1078]
[1753841032252,1.11550684,3787.8,3787.4,2.4456]
[1753841032449,0.57950684,3787.8,3787.7,1.0765]
[1753841032654,0.57950684,3787.8,3787.7,2.4456]
[1753841032951,0.57950684,3788.1,3788.0,0.8686]
[1753841033259,0.8847,3788.1,3788.0,2.4456]
[1753841033454,59.421,3788.7,3788.4,1.0765]
[1753841033455,0.52801,3788.5,3788.4,1.0765]
[1753841033759,1.1875,3787.9,3787.8,1.5835]
[1753841033955,1.79729,3787.8,3787.5,0.7149]
[1753841034154,3.0182,3787.6,3787.5,2.1078]
[1753841034657,3.0182,3787.6,3787.5,2.2377]
[1753841035056,3.0182,3787.6,3787.5,2.4456]
[1753841035254,2.4567,3787.6,3787.5,2.4456]
[1753841035454,1.26129,3787.9,3787.5,1.0765]
[1753841035758,3.0182,3787.7,3787.6,2.4456]
[1753841036162,0.52816,3787.4,3786.9,0.5243]
[1753841036457,2.4567,3787.5,3787.4,2.4456]
[1753841036655,3.0182,3787.5,3787.4,2.1078]
[1753841036953,3.0182,3787.5,3787.4,0.9012]
[1753841037153,0.52815,3787.4,3787.1,1.2392]
[1753841037360,3.0182,3787.2,3787.1,2.1078]
[1753841037658,3.0182,3787.2,3787.1,2.4456]
[1753841037858,2.4567,3787.2,3787.1,2.4456]
[1753841038762,0.8163,3787.2,3787.1,2.4456]
[1753841038961,2.4567,3787.7,3787.6,1.0765]
[1753841039257,2.4567,3787.7,3787.6,2.4456]
[1753841039460,3.0182,3787.7,3787.6,1.7307]
[1753841039660,3.0182,3787.7,3787.6,2.4456]
[1753841040161,2.4567,3787.4,3787.3,2.4302]
[1753841040355,1.7235,3787.4,3787.3,2.4302]
[1753841040563,1.2692,3787.7,3787.3,2.4302]
[1753841040863,2.4567,3787.7,3787.6,2.4302]
[1753841041860,0.52807,3788.0,3787.6,2.4302]
[1753841042163,2.4567,3787.8,3787.7,1.067]
[1753841042358,3.0182,3787.8,3787.7,1.067]
[1753841042766,3.0182,3787.8,3787.7,1.5913]
[1753841042966,0.52809,3787.9,3787.7,2.4302]
[1753841043162,0.3487,3787.8,3787.7,1.5913]
[1753841043465,1.7235,3787.8,3787.7,1.5913]
[1753841043661,2.4567,3787.8,3787.7,2.4302]
[1753841044061,0.52807,3788.0,3787.9,1.067]
[1753841044361,1.41277,3788.0,3787.9,2.4302]
[1753841044562,1.8307,3788.6,3788.0,1.3632]
[1753841044765,3.54618,3788.6,3788.5,2.2318]
[1753841045167,3.54618,3788.6,3788.5,2.4302]
[1753841045369,3.54618,3788.6,3788.5,2.2318]
[1753841045563,3.54618,3788.6,3788.5,2.1078]
[1753841045761,3.54618,3788.6,3788.5,1.3929]
[1753841045962,2.44873,3788.3,3788.2,2.2318]
[1753841046162,2.98473,3788.3,3788.2,2.4302]
[1753841046964,2.4567,3788.3,3788.2,2.4302]
[1753841047172,0.536,3788.6,3788.5,1.067]
[1753841047469,0.3487,3788.9,3788.8,2.4302]
[1753841048262,0.3487,3789.7,3789.6,0.1984]
[1753841048465,1.48227094,3789.7,3789.6,1.067]
[1753841048668,4.30840094,3789.7,3789.6,2.4302]
[1753841049161,4.30840094,3789.7,3789.6,2.1078]
[1753841049359,1.71537,3789.4,3789.3,1.7075]
[1753841049566,3.54611,3789.1,3789.0,0.5243]
[1753841049865,3.54611,3789.1,3789.0,2.1078]
[1753841050263,3.54611,3789.1,3789.0,2.2318]
[1753841050969,3.0182,3789.1,3789.0,2.4302]
[1753841051266,1.2559,3789.1,3789.0,2.4302]
[1753841051863,1.7235,3789.1,3789.0,2.4302]
[1753841052272,2.4567,3789.1,3788.3,0.7149]
[1753841052470,1.7155,3788.6,3788.5,1.3929]
[1753841052964,1.7155,3788.6,3788.4,0.8389]
[1753841052965,1.7235,3788.2,3788.1,1.3384]
[1753841053171,2.4567,3788.2,3788.1,2.4302]
[1753841053670,0.52802,3788.4,3788.1,2.4302]
[1753841053971,1.41272,3788.4,3788.3,2.4302]
[1753841054168,2.98472,3788.4,3788.3,2.4302]
[1753841055273,1.71552,3788.4,3788.3,2.4302]
[1753841055474,3.54622,3788.4,3788.3,2.1078]
[1753841055769,3.54622,3788.4,3788.3,1.3929]
[1753841055973,3.54625,3788.1,3788.0,2.2318]
[1753841056174,3.54625,3788.1,3788.0,1.5169]
[1753841056371,0.52811,3787.7,3787.6,2.11360364]
[1753841056668,3.54631,3787.7,3787.6,0.90700364]
[1753841056872,3.54631,3787.7,3787.6,2.43600364]
[1753841057273,2.98481,3787.7,3787.6,0.00580364]
[1753841057474,3.54631,3787.7,3787.6,2.11360364]
[1753841058066,3.54631,3787.7,3787.6,2.23760364]
[1753841058367,0.5281,3787.8,3787.6,2.43600364]
[1753841058566,0.5281,3787.8,3787.7,2.4302]
[1753841059173,1.4128,3787.8,3787.7,2.4302]
[1753841059373,2.2516,3787.8,3787.7,1.2236]
[1753841059567,3.5463,3787.8,3787.7,2.4302]
[1753841061977,1.759,3787.7,3787.6,0.00580364]
[1753841062171,2.9581,3787.7,3787.6,0.34290364]
[1753841062373,2.9581,3787.7,3787.6,1.35200364]
[1753841062575,2.9581,3787.7,3787.6,2.04330364]
[1753841063674,2.9581,3787.7,3787.6,2.21980364]
[1753841063880,2.9581,3787.7,3787.6,2.33010364]
[1753841064577,2.9581,3787.7,3787.6,1.35200364]
[1753841066382,2.9581,3787.7,3787.6,0.34290364]
[1753841066577,2.9581,3787.7,3787.6,0.00580364]
[1753841067280,8.23841893,3787.7,3787.6,0.00580364]
[1753841068381,0.88344,3786.8,3786.7,1.7891]
[1753841068574,1.41944,3786.8,3786.7,2.3393]
[1753841068779,2.93894,3786.8,3786.7,2.3393]
[1753841069377,1.72734,3786.8,3786.7,0.796]
[1753841069575,3.48634,3786.8,3786.7,2.3393]
[1753841070184,0.52823,3786.9,3786.8,2.3393]
[1753841071585,0.88343,3786.9,3786.8,2.3393]
[1753841072887,0.8912,3786.7,3786.6,2.3393]
[1753841073081,0.52823,3786.9,3786.7,0.9817]
[1753841073282,0.52823,3786.9,3786.8,2.3393]
[1753841073880,0.52821,3787.0,3786.9,1.3576]
[1753841074087,0.52821,3787.0,3786.9,2.3393]
[1753841074388,0.5282,3787.1,3787.0,1.3576]
[1753841074583,0.5282,3787.1,3787.0,2.3393]
[1753841074783,0.8834,3787.1,3787.0,2.3393]
[1753841075182,1.4194,3787.1,3787.0,2.3393]
[1753841075483,2.2633,3787.1,3787.0,2.3393]
[1753841076289,2.9389,3787.1,3787.0,2.3393]
[1753841077487,2.4107,3787.1,3787.0,2.3393]
[1753841078986,2.4107,3787.1,3787.0,1.3462]
[1753841078987,2.9581,3787.1,3787.0,1.3462]
[1753841079383,0.52821,3787.0,3786.8,0.6913]
[1753841079578,0.52821,3787.0,3786.8,0.3371]
[1753841079579,2.9581,3786.9,3786.8,0.3371]
[1753841079784,2.4107,3786.4,3786.3,7.9559]
[1753841079984,1.7351,3786.4,3786.3,8.1416]
[1753841080887,1.7351,3786.4,3786.3,7.6133]
[1753841081692,0.3552,3786.4,3786.3,7.6133]
[1753841082085,2.4107,3786.4,3786.3,7.4276]
[1753841082285,2.4107,3786.4,3786.3,7.6133]
[1753841085189,2.4107,3786.4,3786.3,2.3393]
[1753841086893,2.9581,3786.4,3786.3,2.0375]
[1753841087793,1.7274,3786.3,3786.2,0.90578795]
[1753841087992,3.4864,3786.3,3786.2,0.90578795]
[1753841088193,3.4864,3786.3,3786.2,2.05598795]
[1753841088388,2.9581,3786.3,3786.2,1.36468795]
[1753841088693,2.9581,3786.3,3786.2,2.17208795]
[1753841089288,2.9581,3786.3,3786.2,1.36468795]
[1753841089893,2.9581,3786.3,3786.2,0.90578795]
[1753841091094,2.9581,3786.3,3786.2,0.01848795]
[1753841091599,2.9581,3786.3,3786.2,0.88558795]
[1753841091799,2.9581,3786.3,3786.2,2.03808795]
[1753841092098,2.9581,3786.3,3786.2,2.13498795]
[1753841092895,1.1973,3786.8,3786.2,2.66329795]
[1753841093201,2.3751,3786.7,3786.6,2.2639]
[1753841093401,2.8949,3786.7,3786.6,2.2639]
[1753841093698,2.8949,3786.7,3786.6,2.012]
[1753841093895,1.32052,3787.1,3786.2,0.01848795]
[1753841094202,2.8949,3786.3,3786.2,2.03048795]
[1753841094493,0.52829,3786.5,3786.2,0.01848795]
[1753841094700,0.3469,3786.3,3786.2,2.81070795]
[1753841094997,0.52827,3786.6,3786.2,2.81070795]
[1753841094998,1.1973,3786.5,3786.2,2.81070795]
[1753841095200,1.1973,3786.5,3786.2,1.51840795]
[1753841095393,1.1973,3786.5,3786.4,2.2639]
[1753841095394,2.3751,3786.5,3786.4,2.2639]
[1753841095794,2.8949,3786.5,3786.4,2.2639]
[1753841095993,0.52829,3786.4,3786.2,0.01848795]
[1753841096190,2.8949,3786.3,3786.2,0.01848795]
[1753841096396,1.6942,3786.3,3786.2,2.28238795]
[1753841096601,0.3469,3786.3,3786.2,2.28238795]
[1753841097394,1.1973,3786.6,3786.2,2.28238795]
[1753841097593,0.8633,3786.6,3786.5,0.9716]
[1753841097799,0.3469,3786.7,3786.6,2.2639]
[1753841097998,0.3469,3786.7,3786.6,0.9716]
[1753841098198,0.8633,3786.7,3786.6,0.9716]
[1753841098498,2.3751,3786.7,3786.6,0.9716]
[1753841098697,2.90335,3786.7,3786.6,2.2639]
[1753841098895,2.3751,3786.7,3786.6,2.2639]
[1753841099999,2.8949,3786.7,3786.6,2.1089]
[1753841100198,1.7171,3786.7,3786.3,0.0969]
[1753841100500,2.8949,3786.4,3786.3,2.2639]
[1753841100704,1.6942,3786.4,3786.3,2.7922]
[1753841100900,0.5198,3786.7,3786.3,2.7922]
[1753841100901,0.52825,3786.7,3786.5,1.49987]
[1753841101201,1.46493468,3787.9,3787.2,2.2639]
[1753841101397,3.13927486,3787.8,3787.7,1.3184]
[1753841101603,2.98646486,3787.8,3787.7,2.2639]
[1753841101802,4.18716486,3787.8,3787.7,1.3184]
[1753841102003,4.18716486,3787.8,3787.7,0.8671]
[1753841103206,3.42304,3787.5,3787.4,2.012]
[1753841103406,2.0625,3787.2,3787.1,1.3184]
[1753841103707,2.8949,3787.2,3787.1,0.3653]
[1753841103907,2.8949,3787.2,3787.1,0.8671]
[1753841104101,2.8949,3787.2,3787.1,2.2639]
[1753841104309,2.38684,3787.5,3787.4,1.3184]
[1753841104508,2.90324,3787.5,3787.4,2.2639]
[1753841104707,0.3469,3787.5,3787.4,2.2639]
[1753841105807,1.6942,3788.3,3788.2,1.6652]
[1753841106000,0.3469,3788.4,3788.3,2.2639]
[1753841106813,0.3469,3788.6,3788.5,1.5703]
[1753841107108,0.5164,3788.8,3788.5,2.2639]
[1753841107306,0.3469,3789.0,3788.9,0.155]
[1753841107504,0.3469,3789.0,3788.9,0.9716]
[1753841107805,1.10977599,3789.0,3788.9,2.2531]
[1753841108004,3.65777599,3789.0,3788.9,1.3184]
[1753841108214,1.1778,3788.7,3788.6,0.8166]
[1753841108409,0.3469,3788.2,3788.1,1.6479]
[1753841108608,0.3469,3788.2,3788.1,1.734]
[1753841108912,0.3469,3788.2,3788.1,2.2358]
[1753841109304,1.0053,3788.6,3788.5,0.4513]
[1753841109506,1.6976,3788.6,3788.5,2.012]
[1753841109700,1.6976,3788.6,3788.5,2.0981]
[1753841109905,2.8949,3788.6,3788.5,2.0981]
[1753841110109,2.8949,3788.6,3788.5,2.012]
[1753841110309,3.42289,3788.6,3788.5,1.3184]
[1753841110508,1.1778,3788.3,3788.2,0.8671]
[1753841110810,2.8949,3788.3,3788.2,2.2358]
[1753841111008,1.6942,3788.3,3788.2,2.2358]
[1753841111310,0.8324,3788.3,3788.2,2.2358]
[1753841111901,1.1973,3788.6,3788.5,0.503]
[1753841111902,2.90309,3788.6,3788.5,0.503]
[1753841112102,2.90309,3788.6,3788.5,2.2358]
[1753841112513,3.42289,3788.6,3788.5,2.2358]
[1753841112713,3.42289,3788.6,3788.5,1.3184]
[1753841112906,3.42289,3788.6,3788.5,0.3653]
[1753841113709,3.42289,3788.6,3788.5,1.3184]
[1753841114601,2.8949,3788.6,3788.2,0.6936]
[1753841114806,3.42293,3788.3,3788.2,1.3184]
[1753841115012,2.8949,3788.0,3787.9,2.012]
[1753841115903,0.52808,3787.9,3787.5,0.52813]
[1753841116108,3.42302,3787.7,3787.6,1.3184]
[1753841117004,3.42302,3787.7,3787.6,2.012]
[1753841117514,2.8949,3787.7,3787.6,2.221]
[1753841118406,2.3751,3787.7,3787.6,2.221]
[1753841118811,1.6942,3787.7,3787.6,2.221]
[1753841119017,0.3469,3787.7,3787.6,2.221]
[1753841120215,1.20895,3788.2,3788.0,2.221]
[1753841120515,1.55585,3788.2,3788.1,2.221]
[1753841120713,2.3751,3788.2,3788.1,2.221]
[1753841120911,2.3751,3788.2,3788.1,1.7192]
[1753841121215,0.3276,3788.0,3787.9,0.8654]
[1753841121413,2.84373,3787.6,3787.5,2.2536]
[1753841121615,2.8156,3787.6,3787.5,2.2536]
[1753841121812,2.3156,3787.6,3787.5,2.2536]
[1753841124714,1.29363,3788.3,3788.2,0.8119]
[1753841124916,3.34363,3788.3,3788.2,2.129]
[1753841125921,2.84359,3788.6,3788.5,2.2536]
[1753841126422,0.6813,3788.9,3788.8,0.52796]
[1753841126613,2.3156,3789.2,3789.1,2.2536]
[1753841126817,3.57543049,3789.2,3789.1,2.0511]
[1753841127019,3.57543049,3789.2,3789.1,1.3338]
[1753841127727,2.3156,3788.4,3788.3,2.78163]
[1753841128025,1.1014,3788.4,3788.3,2.78163]
[1753841128212,0.3358,3788.4,3788.3,2.78163]
[1753841128923,0.3358,3788.6,3788.5,1.46449]
[1753841129319,0.3358,3788.8,3788.7,0.65257]
[1753841129627,0.8687,3788.8,3788.7,2.2536]
[1753841129922,2.3156,3788.8,3788.7,2.2536]
[1753841130113,2.8156,3788.8,3788.7,2.2536]
[1753841132221,0.3358,3788.8,3788.7,0.9365]
[1753841132725,2.8156,3788.8,3788.7,0.9365]
[1753841132926,2.8156,3788.8,3788.7,2.2536]
[1753841134931,2.3156,3788.8,3788.7,2.2536]
[1753841135122,1.6343,3788.8,3788.7,2.2536]
[1753841135324,0.3358,3789.1,3789.0,2.2536]
[1753841135720,2.3156,3789.4,3789.3,2.2536]
[1753841136026,2.3156,3789.4,3788.7,1.3199]
[1753841136027,1.6343,3789.5,3789.4,2.25957]
[1753841136424,1.6343,3789.5,3789.4,2.78147]
[1753841136627,3.04341,3789.9,3789.8,2.2536]
[1753841137130,0.72781,3789.9,3789.8,2.2536]
[1753841137333,2.36211,3789.9,3789.8,2.2536]
[1753841137525,3.04341,3789.9,3789.8,2.2536]
[1753841137726,2.5156,3789.9,3789.8,2.78142]
[1753841138425,2.5156,3789.9,3789.8,2.2536]
[1753841138621,3.0156,3789.9,3789.8,2.129]
[1753841138826,1.1014,3789.6,3789.5,2.129]
[1753841139132,2.4798,3789.5,3789.4,1.7076]
[1753841139326,2.8156,3789.5,3789.4,2.129]
[1753841140025,1.20912,3789.8,3789.5,0.52786]
[1753841140227,3.54341,3789.9,3789.8,2.129]
[1753841140820,3.04341,3789.9,3789.8,2.2536]
[1753841141021,0.2,3789.9,3789.8,2.2536]
[1753841142430,1.72401,3790.6,3790.5,2.2536]
[1753841142630,3.34331,3790.6,3790.5,2.2536]
[1753841143534,2.8156,3790.6,3790.5,2.2536]
[1753841143930,1.2142,3791.3,3790.7,1.3171]
[1753841144131,0.3358,3790.8,3790.7,2.2536]
[1753841144335,2.8156,3791.3,3791.2,1.3338]
[1753841144537,1.62907,3790.9,3790.8,0.8119]
[1753841144730,0.5,3790.8,3790.3,0.5219]
[1753841144930,1.1014,3790.4,3790.3,1.4584]
[1753841145132,1.6343,3790.4,3790.3,2.78134]
[1753841145336,0.3358,3790.4,3790.3,2.78134]
[1753841146029,1.7142,3790.3,3790.2,0.8119]
[1753841146232,2.8156,3790.3,3790.2,2.129]
[1753841146434,2.8156,3790.3,3790.2,2.2536]
[1753841147533,2.8156,3790.3,3789.5,38.014]
[1753841147534,1.1014,3789.9,3789.8,2.2536]
[1753841147738,2.3156,3789.9,3789.8,2.2536]
[1753841148636,2.8156,3789.9,3789.8,0.3435]
[1753841148832,2.8156,3789.9,3789.8,0.8654]
[1753841149037,2.8156,3789.9,3789.8,2.0511]
[1753841149635,1.20907,3790.2,3789.9,0.5278]
[1753841149828,1.6343,3790.0,3789.9,2.7814]
[1753841151135,2.84339,3790.0,3789.9,2.2536]
[1753841151336,2.8315,3790.0,3789.9,2.2536]
[1753841153732,3.35929,3790.0,3789.9,2.2536]
[1753841154142,2.8315,3790.0,3789.9,2.2536]
[1753841155439,1.1111,3789.8,3789.7,0.8514]
[1753841155644,2.7819,3789.8,3789.7,0.8514]
[1753841156037,2.7819,3789.8,3789.7,1.2965]
[1753841156232,2.7819,3789.8,3789.7,1.9405]
[1753841157339,2.7819,3789.8,3789.7,2.0999]
[1753841158439,2.266,3789.8,3789.7,2.0999]
[1753841160143,2.7819,3789.8,3789.7,2.0999]
[1753841164552,2.7819,3789.8,3789.7,23.4049]
[1753841165350,1.1111,3789.3,3789.2,28.40339]
[1753841165556,2.7819,3789.3,3789.2,23.93279]
[1753841165755,2.266,3789.3,3789.2,23.93279]
[1753841166259,2.7819,3789.3,3789.2,23.93279]
[1753841166654,2.266,3789.3,3789.2,23.93279]
[1753841166852,2.266,3789.3,3789.2,2.0999]
[1753841167158,1.8225,3789.0,3788.9,2.62784]
[1753841167354,2.266,3789.0,3788.9,23.93184]
[1753841167549,2.266,3789.0,3788.9,29.20992933]
[1753841171154,1.6024,3789.0,3788.9,29.20992933]
[1753841172256,1.6024,3789.0,3788.9,7.90592933]
[1753841172456,1.6024,3789.0,3788.9,29.20692933]
[1753841172658,2.266,3789.0,3788.9,29.20692933]
[1753841172858,2.7819,3789.0,3788.9,0.8514]
[1753841173055,2.99047,3789.5,3788.2,0.5101]
[1753841173260,1.925,3788.4,3788.3,22.37223]
[1753841173454,2.266,3788.4,3788.3,22.71353]
[1753841173866,2.266,3788.4,3788.3,23.92893]
[1753841174765,1.6024,3788.4,3788.3,23.92893]
[1753841175058,1.1589,3788.4,3788.3,23.92893]
[1753841175260,1.1549,3789.6,3789.1,0.7053]
[1753841175464,3.30976,3789.5,3789.4,1.9405]
[1753841176564,0.3266,3789.5,3789.4,2.0617]
[1753841176761,1.1111,3789.8,3789.7,2.0617]
[1753841177358,1.6024,3789.8,3789.7,2.0617]
[1753841177870,2.266,3789.8,3789.7,2.0617]
[1753841178468,2.7819,3789.8,3789.7,1.2965]
[1753841178968,2.7819,3789.8,3789.7,1.9405]
[1753841179170,2.7819,3789.8,3789.7,1.9871]
[1753841180167,2.7819,3789.8,3789.7,2.0617]
[1753841181270,0.3266,3789.8,3789.7,2.0617]
[1753841181571,1.69547,3790.2,3789.9,0.5102]
[1753841181773,2.79019,3790.0,3789.9,0.8331]
[1753841181966,3.28889,3790.0,3789.9,0.7643]
[1753841182161,3.28889,3790.0,3789.9,0.3163]
[1753841182374,0.52782,3789.8,3789.5,0.52786]
[1753841182566,1.0947,3789.6,3789.5,1.99796]
[1753841182872,2.7611,3789.6,3789.5,1.99796]
[1753841183078,2.7611,3789.6,3789.5,2.57696]
[1753841183875,2.2624,3789.6,3789.5,2.57696]
[1753841186773,1.1677,3789.5,3789.4,0.52787]
[1753841186974,2.7611,3789.5,3789.4,23.75817]
[1753841187173,2.2582,3789.5,3789.4,29.03584149]
[1753841187473,2.7611,3789.5,3789.4,29.03584149]
[1753841188466,2.7611,3789.5,3789.4,29.14764149]
[1753841188666,3.28896,3789.5,3789.3,0.52788]
[1753841188870,2.79027,3789.4,3789.3,0.8265]
[1753841189067,3.28897,3789.4,3789.1,0.6628]
[1753841189281,1.0947,3789.1,3789.0,1.3175]
[1753841189474,2.7611,3789.1,3789.0,0.3163]
[1753841189780,2.7611,3788.9,3788.8,1.9373]
[1753841190373,2.2624,3788.9,3788.8,2.0491]
[1753841193078,2.7611,3788.9,3788.8,2.0491]